bitfinex/quotes_BTCUSD_20220111
["timestamp","ask_amount","ask_price","bid_price","bid_amount"]
[1641885056169,1.06454,42206.0,42191.0,0.43064949]
[1641885056372,0.30288013,42200.0,42198.0,0.031]
[1641885056570,0.35288013,42200.0,42198.0,0.031]
[1641885056773,0.48893579,42199.0,42198.0,0.031]
[1641885056971,0.86085779,42199.0,42181.0,0.3118]
[1641885057175,0.00128977,42196.0,42181.0,0.3118]
[1641885057374,0.25642981,42190.0,42177.0,0.50302557]
[1641885057571,0.20642981,42190.0,42177.0,0.03614779]
[1641885057971,1.21398819,42190.0,42177.0,0.03614779]
[1641885058171,1.21398819,42190.0,42176.0,1.31541596]
[1641885058172,1.21398819,42190.0,42181.0,0.059262]
[1641885058426,1.2422721,42190.0,42181.0,0.059262]
[1641885058625,1.2922721,42190.0,42187.0,0.35481836]
[1641885058827,1.00740329,42189.0,42187.0,0.35481836]
[1641885059825,1.00740329,42189.0,42186.0,0.00065946]
[1641885059826,0.068029,42187.0,42186.0,0.00065946]
[1641885060626,0.073029,42187.0,42183.0,0.00051815]
[1641885060828,0.073029,42187.0,42185.0,0.40183061]
[1641885061030,0.073029,42187.0,42186.0,0.64193221]
[1641885061627,0.068029,42187.0,42186.0,0.64193221]
[1641885062473,0.073029,42187.0,42185.0,1.17555254]
[1641885062874,0.073029,42187.0,42185.0,1.23480854]
[1641885063272,0.068029,42187.0,42185.0,1.23480854]
[1641885063674,0.063029,42187.0,42186.0,0.64249222]
[1641885064278,0.06221994,42187.0,42186.0,0.64249222]
[1641885064477,0.06321994,42187.0,42186.0,0.64249222]
[1641885065679,0.06221994,42187.0,42186.0,0.64249222]
[1641885066522,0.06521994,42187.0,42186.0,0.64249222]
[1641885067723,0.06221994,42187.0,42186.0,0.64249222]
[1641885068127,0.06221994,42187.0,42186.0,1.31933432]
[1641885068524,0.06721994,42187.0,42186.0,1.31933432]
[1641885069682,0.06221994,42187.0,42186.0,0.64249222]
[1641885070071,0.11221994,42187.0,42186.0,0.64249222]
[1641885070275,0.06221994,42187.0,42186.0,0.64249222]
[1641885070477,0.11721994,42187.0,42186.0,1.05187735]
[1641885070673,0.06721994,42187.0,42186.0,1.05187735]
[1641885071072,0.11721994,42187.0,42186.0,0.64249222]
[1641885071271,0.06721994,42187.0,42186.0,0.64249222]
[1641885071472,0.11721994,42187.0,42186.0,0.64249222]
[1641885071773,0.06221994,42187.0,42186.0,0.64249222]
[1641885071973,0.11221994,42187.0,42186.0,0.64249222]
[1641885072374,0.06721994,42187.0,42186.0,0.64249222]
[1641885072574,0.11721994,42187.0,42186.0,0.64249222]
[1641885072976,0.06721994,42187.0,42186.0,0.64249222]
[1641885073177,0.11721994,42187.0,42186.0,0.64249222]
[1641885073822,0.11221994,42187.0,42186.0,0.64249222]
[1641885074424,0.03335303,42193.0,42191.0,0.71492271]
[1641885074627,0.1,42187.0,42186.0,0.64249222]
[1641885074826,0.30536669,42187.0,42186.0,0.64249222]
[1641885075028,0.03335303,42193.0,42186.0,0.64249222]
[1641885075226,0.00713824,42192.0,42186.0,0.64249222]
[1641885075926,0.26405763,42191.0,42190.0,0.58066722]
[1641885076328,0.31405763,42191.0,42190.0,0.58066722]
[1641885076530,0.34105763,42191.0,42190.0,0.58066722]
[1641885077030,0.34105763,42191.0,42189.0,0.58066722]
[1641885077271,0.05,42190.0,42189.0,0.58066722]
[1641885078170,0.05,42190.0,42188.0,0.00065941]
[1641885078373,0.05,42190.0,42189.0,0.88765881]
[1641885078570,0.072,42190.0,42189.0,0.88765881]
[1641885078771,0.122,42190.0,42189.0,0.88765881]
[1641885079872,0.1,42190.0,42189.0,0.88765881]
[1641885080071,0.05,42190.0,42188.0,0.88765881]
[1641885080273,0.05,42190.0,42189.0,0.24]
[1641885080472,0.082,42190.0,42189.0,0.24]
[1641885080672,0.132,42190.0,42189.0,0.24]
[1641885081321,0.132,42190.0,42189.0,1.12765881]
[1641885081721,0.1,42190.0,42189.0,0.24]
[1641885082021,0.05,42190.0,42189.0,0.24]
[1641885082425,0.094,42190.0,42189.0,0.24]
[1641885082822,0.144,42190.0,42189.0,0.24]
[1641885083024,0.144,42190.0,42189.0,1.12765881]
[1641885083428,0.144,42190.0,42189.0,1.80892684]
[1641885083429,0.43421466,42190.0,42189.0,1.80892684]
[1641885083632,0.50777018,42190.0,42189.0,1.80949279]
[1641885083826,0.83569218,42190.0,42189.0,0.92183398]
[1641885084027,0.83569218,42190.0,42189.0,0.24056595]
[1641885084676,1.26138583,42190.0,42189.0,0.24056595]
[1641885084871,1.36138583,42190.0,42189.0,0.24056595]
[1641885085071,1.36138583,42190.0,42188.0,0.58447802]
[1641885085271,0.68094696,42189.0,42188.0,0.58447802]
[1641885085472,0.82824696,42189.0,42188.0,0.11022202]
[1641885085671,0.92824696,42189.0,42188.0,0.11022202]
[1641885085871,1.32532164,42189.0,42186.0,0.79149005]
[1641885086074,1.32532164,42189.0,42186.0,0.11088147]
[1641885086075,0.00124095,42187.0,42186.0,0.11088147]
[1641885086371,0.42046295,42187.0,42186.0,0.11088147]
[1641885086571,0.92885937,42187.0,42186.0,0.11088147]
[1641885086971,0.92885937,42187.0,42186.0,0.00065945]
[1641885087171,0.92885937,42187.0,42182.0,0.68126803]
[1641885087371,0.05928188,42185.0,42184.0,0.0006595]
[1641885087573,0.83238024,42185.0,42184.0,0.0006595]
[1641885087771,0.2,42184.0,42180.0,0.0095]
[1641885087971,0.1,42182.0,42180.0,0.0095]
[1641885088170,0.74726573,42181.0,42180.0,0.0095]
[1641885088427,0.79726573,42181.0,42180.0,0.0095]
[1641885088631,1.1938336,42181.0,42180.0,0.0095]
[1641885088928,1.53355692,42181.0,42180.0,0.0095]
[1641885089830,1.53355692,42181.0,42178.0,0.00065386]
[1641885090028,1.53355692,42181.0,42180.0,0.24]
[1641885090231,1.38355692,42181.0,42180.0,0.24]
[1641885090434,0.42047711,42181.0,42180.0,0.24]
[1641885090629,0.47247711,42181.0,42180.0,0.24]
[1641885091029,0.10055511,42181.0,42180.0,0.24]
[1641885091232,0.0993,42181.0,42180.0,0.24]
[1641885091430,0.1993,42181.0,42180.0,0.49251293]
[1641885091631,0.1993,42181.0,42180.0,1.18827947]
[1641885091830,0.1473,42181.0,42180.0,1.18827947]
[1641885092275,0.1473,42181.0,42180.0,0.93576654]
[1641885092474,0.1833,42181.0,42180.0,0.93576654]
[1641885092874,0.136,42181.0,42180.0,0.93576654]
[1641885093476,0.136,42181.0,42180.0,0.24]
[1641885093676,0.136,42181.0,42180.0,0.24053935]
[1641885093879,0.1,42181.0,42180.0,0.24053935]
[1641885094077,0.1,42181.0,42180.0,0.93644845]
[1641885094078,0.05,42181.0,42180.0,0.93644845]
[1641885094282,1.2791,42188.0,42180.0,0.93644845]
[1641885094478,0.60472068,42194.0,42181.0,0.51687847]
[1641885094677,0.3117,42193.0,42180.0,0.95444845]
[1641885094877,0.3117,42193.0,42181.0,0.52489138]
[1641885095077,0.3117,42193.0,42191.0,0.2762943]
[1641885095278,0.27100532,42195.0,42191.0,0.2762943]
[1641885095478,0.60600041,42196.0,42191.0,0.2762943]
[1641885095778,0.60600041,42196.0,42191.0,0.86153121]
[1641885095779,0.00213377,42196.0,42191.0,0.86153121]
[1641885096229,0.00213377,42196.0,42191.0,0.2762943]
[1641885096633,0.06213824,42192.0,42191.0,0.2782943]
[1641885096829,0.06213824,42192.0,42191.0,0.002]
[1641885097231,0.06213824,42192.0,42191.0,0.58961759]
[1641885097931,0.00713824,42192.0,42191.0,0.58761759]
[1641885098331,0.00713824,42192.0,42189.0,0.68277639]
[1641885098532,0.06413824,42192.0,42191.0,1.38134854]
[1641885099432,0.06413824,42192.0,42191.0,0.58879152]
[1641885099871,0.00713824,42192.0,42191.0,0.58779152]
[1641885100673,0.06413824,42192.0,42191.0,0.58879152]
[1641885100873,0.06413824,42192.0,42191.0,0.82879152]
[1641885101476,0.06413824,42192.0,42191.0,0.24157999]
[1641885101874,0.00713824,42192.0,42191.0,0.24057999]
[1641885102575,0.06513824,42192.0,42191.0,0.24257999]
[1641885103636,0.06513824,42192.0,42191.0,0.82979152]
[1641885103836,0.06513824,42192.0,42191.0,0.82779152]
[1641885103837,0.00713824,42192.0,42191.0,0.82779152]
[1641885104637,0.06113824,42192.0,42191.0,0.24257999]
[1641885105237,0.06113824,42192.0,42191.0,0.82979152]
[1641885105637,0.465022,42192.0,42191.0,0.82979152]
[1641885105838,0.565022,42192.0,42191.0,0.82979152]
[1641885106138,2.44621765,42192.0,42191.0,0.82779152]
[1641885106338,2.41425589,42192.0,42191.0,0.82779152]
[1641885106543,2.46525589,42192.0,42191.0,0.24057999]
[1641885107177,0.67740035,42192.0,42191.0,0.24057999]
[1641885107579,0.67240035,42192.0,42191.0,0.24057999]
[1641885107981,0.62506024,42192.0,42191.0,0.24057999]
[1641885108181,1.02873115,42192.0,42191.0,0.24057999]
[1641885108579,1.07973115,42192.0,42191.0,0.24057999]
[1641885110683,1.02873115,42192.0,42191.0,0.24057999]
[1641885110925,0.62506024,42192.0,42191.0,0.24057999]
[1641885111929,0.57406024,42192.0,42191.0,0.24057999]
[1641885113226,0.58706024,42192.0,42191.0,0.24057999]
[1641885114227,0.58706024,42192.0,42191.0,0.24002469]
[1641885114426,0.57406024,42192.0,42191.0,0.24002469]
[1641885114684,0.56906024,42192.0,42191.0,0.24002469]
[1641885114879,0.58206024,42192.0,42191.0,0.24002469]
[1641885116078,0.56906024,42192.0,42191.0,0.24002469]
[1641885117777,0.58206024,42192.0,42191.0,0.24002469]
[1641885118626,0.58206024,42192.0,42191.0,0.24051058]
[1641885118825,0.59506024,42192.0,42191.0,0.24051058]
[1641885119226,0.56906024,42192.0,42191.0,0.24051058]
[1641885120829,0.58206024,42192.0,42191.0,0.24051058]
[1641885122179,0.56906024,42192.0,42191.0,0.24051058]
[1641885122381,1.17884179,42192.0,42188.0,0.58721153]
[1641885122579,1.01847506,42189.0,42188.0,0.58721153]
[1641885122780,1.11577506,42189.0,42188.0,0.58721153]
[1641885122978,0.00123027,42187.0,42184.0,0.58721153]
[1641885123277,1.00175252,42185.0,42184.0,0.58721153]
[1641885123478,1.95626669,42185.0,42184.0,0.58721153]
[1641885123677,2.05626669,42185.0,42184.0,0.58721153]
[1641885123877,2.05626669,42185.0,42182.0,0.58786527]
[1641885124079,0.371922,42184.0,42182.0,0.58786527]
[1641885124278,0.371922,42184.0,42182.0,0.58721153]
[1641885124279,0.38013648,42183.0,42182.0,0.58721153]
[1641885124480,0.43013648,42183.0,42182.0,0.58721153]
[1641885124679,0.53013648,42183.0,42180.0,0.15385969]
[1641885124982,0.421922,42182.0,42180.0,0.15385969]
[1641885125279,0.37735659,42181.0,42179.0,0.15385969]
[1641885125479,0.39843067,42184.0,42179.0,0.15385969]
[1641885125678,0.27670679,42182.0,42179.0,0.15385969]
[1641885126128,0.059281,42181.0,42179.0,0.15385969]
[1641885126929,0.013,42181.0,42178.0,0.00064816]
[1641885127129,0.013,42181.0,42180.0,0.23571369]
[1641885127827,0.013,42181.0,42180.0,0.50749966]
[1641885128027,0.013,42181.0,42180.0,0.93296497]
[1641885128228,0.68376592,42187.0,42180.0,0.93296497]
[1641885128628,0.68376592,42187.0,42180.0,0.93346309]
[1641885128929,0.68376592,42187.0,42180.0,1.60048239]
[1641885129330,0.68376592,42187.0,42180.0,0.67251742]
[1641885129529,0.00128808,42182.0,42181.0,0.6720193]
[1641885129776,0.00128808,42182.0,42180.0,0.00049812]
[1641885130184,0.05128808,42182.0,42180.0,0.00049812]
[1641885130378,0.73259057,42181.0,42180.0,0.00049812]
[1641885130677,0.78259057,42181.0,42180.0,0.00049812]
[1641885130876,0.78259057,42181.0,42180.0,0.00057917]
[1641885131278,0.79359057,42181.0,42180.0,0.00057917]
[1641885132980,0.78259057,42181.0,42180.0,0.00057917]
[1641885133429,0.45584387,42181.0,42180.0,0.00057917]
[1641885133635,0.05,42181.0,42180.0,0.24057917]
[1641885133930,0.05128808,42182.0,42180.0,0.24057917]
[1641885134131,0.011,42181.0,42180.0,0.24057917]
[1641885136233,0.4865376,42181.0,42180.0,0.24057917]
[1641885137034,0.4755376,42181.0,42180.0,0.24057917]
[1641885137679,0.6865376,42181.0,42180.0,0.24057917]
[1641885138678,1.0584596,42181.0,42180.0,0.24057917]
[1641885138879,1.0474596,42181.0,42180.0,0.24057917]
[1641885139680,1.0584596,42181.0,42180.0,0.24057917]
[1641885140081,1.0534596,42181.0,42180.0,0.24057917]
[1641885140927,1.0424596,42181.0,42180.0,0.24057917]
[1641885142328,0.8544596,42181.0,42180.0,0.24057917]
[1641885143030,0.9544596,42181.0,42180.0,0.24057917]
[1641885143628,0.9424596,42181.0,42180.0,0.24057917]
[1641885143828,0.9534596,42181.0,42180.0,0.24057917]
[1641885144976,0.577922,42181.0,42180.0,0.24057917]
[1641885145178,0.566922,42181.0,42180.0,0.24057917]
[1641885145978,0.578922,42181.0,42180.0,0.24057917]
[1641885146580,1.17972886,42181.0,42180.0,0.24057917]
[1641885147782,1.16772886,42181.0,42180.0,0.24057917]
[1641885147980,1.17772886,42181.0,42180.0,0.24057917]
[1641885149127,1.16772886,42181.0,42180.0,0.24057917]
[1641885149930,1.17772886,42181.0,42180.0,0.24057917]
[1641885150530,1.22629878,42181.0,42180.0,0.24057917]
[1641885151132,1.22297873,42181.0,42180.0,0.24057917]
[1641885151334,1.64297873,42181.0,42180.0,0.24057917]
[1641885151533,0.44404849,42179.0,42178.0,0.00064815]
[1641885151732,1.45878833,42179.0,42178.0,0.00064815]
[1641885151933,0.3236238,42175.0,42171.0,0.58961373]
[1641885152186,0.05929278,42174.0,42171.0,0.58961373]
[1641885152377,0.06643437,42174.0,42171.0,0.58961373]
[1641885152577,0.34524653,42174.0,42170.0,0.58961373]
[1641885152978,0.44524653,42174.0,42170.0,0.58961373]
[1641885153379,0.44524653,42174.0,42170.0,0.83026209]
[1641885153584,0.44524653,42174.0,42173.0,0.0006231]
[1641885153982,0.45524653,42174.0,42173.0,0.0006231]
[1641885154181,0.17643437,42174.0,42173.0,0.0006231]
[1641885154381,0.07643437,42174.0,42173.0,0.0006231]
[1641885154582,0.01,42174.0,42173.0,0.0006231]
[1641885155281,0.059287,42178.0,42173.0,0.33686152]
[1641885155482,0.059287,42178.0,42173.0,0.0006231]
[1641885155682,0.059287,42178.0,42173.0,0.00127137]
[1641885155683,0.371922,42177.0,42173.0,0.00127137]
[1641885155933,0.421922,42177.0,42173.0,0.5908851]
[1641885156236,0.471922,42177.0,42173.0,0.5908851]
[1641885156833,0.471922,42177.0,42173.0,0.59023683]
[1641885157034,0.471922,42177.0,42173.0,0.59088511]
[1641885158035,0.477922,42177.0,42173.0,0.59023683]
[1641885158234,0.477922,42177.0,42173.0,0.59088511]
[1641885158634,0.106,42177.0,42175.0,0.0006224]
[1641885159036,0.371922,42176.0,42175.0,0.0006224]
[1641885159236,0.421922,42176.0,42175.0,0.0006224]
[1641885159880,0.45934653,42176.0,42175.0,0.0006224]
[1641885161281,0.83502845,42176.0,42175.0,0.0006224]
[1641885161682,0.93502845,42176.0,42175.0,0.0006224]
[1641885161982,0.84502845,42176.0,42175.0,0.0006224]
[1641885162184,0.94502845,42176.0,42175.0,0.0006224]
[1641885163187,0.93502845,42176.0,42175.0,0.0006224]
[1641885163624,0.93502845,42176.0,42173.0,0.00127067]
[1641885163825,0.27885321,42175.0,42173.0,0.00127067]
[1641885164028,0.371922,42174.0,42173.0,0.0006224]
[1641885164225,0.421922,42174.0,42173.0,0.0006224]
[1641885164825,0.05,42174.0,42173.0,0.0006224]
[1641885165225,0.1,42175.0,42173.0,0.0006224]
[1641885165625,0.05,42175.0,42173.0,0.0006224]
[1641885165825,0.13042453,42176.0,42173.0,0.0006224]
[1641885166027,0.009,42175.0,42173.0,0.0006224]
[1641885166631,0.009,42175.0,42173.0,0.59023613]
[1641885167275,0.13042453,42176.0,42173.0,0.59023613]
[1641885167875,0.14042453,42176.0,42173.0,0.59023613]
[1641885168676,0.14042453,42176.0,42173.0,0.0006224]
[1641885169075,0.14042453,42176.0,42173.0,0.59023613]
[1641885169279,0.13042453,42176.0,42173.0,0.59023613]
[1641885169676,0.13042453,42176.0,42173.0,0.0006224]
[1641885170077,0.13942453,42176.0,42173.0,0.0006224]
[1641885170577,0.51704717,42176.0,42173.0,0.0006224]
[1641885170780,0.371922,42175.0,42173.0,0.0006224]
[1641885171229,0.37596888,42174.0,42173.0,0.0006224]
[1641885171527,0.15,42174.0,42173.0,0.0006224]
[1641885171726,0.05,42174.0,42173.0,0.0006224]
[1641885171929,0.059,42174.0,42173.0,0.0006224]
[1641885172727,0.009,42174.0,42173.0,0.0006224]
[1641885172928,0.059,42174.0,42173.0,0.0006224]
[1641885173128,0.13163118,42176.0,42173.0,0.0006224]
[1641885173329,0.371922,42175.0,42173.0,0.0006224]
[1641885173530,0.471922,42175.0,42173.0,0.0006224]
[1641885173731,0.32998924,42172.0,42171.0,0.59023683]
[1641885174131,0.42998924,42172.0,42171.0,0.59023683]
[1641885174981,0.42998924,42172.0,42171.0,0.0006231]
[1641885175180,0.67597004,42172.0,42171.0,0.0006231]
[1641885175683,0.42998924,42172.0,42171.0,0.0006231]
[1641885175981,0.108,42172.0,42171.0,0.0006231]
[1641885176183,0.108,42172.0,42171.0,0.59023683]
[1641885176583,0.108,42172.0,42171.0,0.0006231]
[1641885176883,0.008,42172.0,42171.0,0.0006231]
[1641885177483,0.41130122,42173.0,42171.0,0.53361802]
[1641885177484,0.40797122,42173.0,42171.0,0.53361802]
[1641885177883,0.09667,42173.0,42171.0,0.0006231]
[1641885178083,0.05467,42173.0,42171.0,0.0006231]
[1641885178286,0.05,42172.0,42171.0,0.0006231]
[1641885178529,0.008,42173.0,42172.0,0.53299492]
[1641885178731,0.06729307,42173.0,42172.0,0.53299492]
[1641885178930,0.82315505,42173.0,42172.0,0.53299492]
[1641885179129,0.82315505,42173.0,42171.0,1.22710395]
[1641885179130,1.02315505,42173.0,42171.0,1.22710395]
[1641885179329,0.46538111,42172.0,42171.0,1.22710395]
[1641885179529,0.61017906,42172.0,42171.0,1.22710395]
[1641885179734,0.81138616,42172.0,42171.0,0.69410903]
[1641885179931,0.87038616,42172.0,42171.0,0.5951939]
[1641885180532,0.87038616,42172.0,42171.0,0.12073307]
[1641885180734,0.87038616,42172.0,42170.0,0.12135687]
[1641885180735,0.05,42171.0,42170.0,0.12135687]
[1641885180933,0.55122544,42171.0,42170.0,0.12135687]
[1641885181134,0.65681177,42171.0,42170.0,0.12135687]
[1641885181534,0.65681177,42171.0,42170.0,0.0006238]
[1641885181934,0.54561079,42171.0,42170.0,0.0006238]
[1641885183181,0.53261079,42171.0,42170.0,0.0006238]
[1641885183682,0.53261079,42171.0,42168.0,0.69538158]
[1641885184083,0.37640481,42170.0,42168.0,0.69538158]
[1641885184284,0.26708331,42169.0,42168.0,0.69473319]
[1641885184484,0.31708331,42169.0,42168.0,0.69473319]
[1641885184685,0.31708331,42169.0,42168.0,0.00062416]
[1641885186331,0.32508331,42169.0,42168.0,0.00062416]
[1641885187734,0.31708331,42169.0,42168.0,0.00062416]
[1641885188336,0.32508331,42169.0,42168.0,0.00062416]
[1641885188539,0.32508331,42169.0,42167.0,0.69473389]
[1641885189239,0.32508331,42169.0,42167.0,1.12824353]
[1641885189440,0.32508331,42169.0,42167.0,0.69473389]
[1641885189886,0.69218897,42169.0,42167.0,0.69473389]
[1641885190091,0.70018897,42169.0,42167.0,1.12824353]
[1641885190485,0.70018897,42169.0,42167.0,0.69473389]
[1641885191188,0.70018897,42169.0,42167.0,1.12824353]
[1641885192695,0.32508331,42169.0,42167.0,1.12824353]
[1641885193090,0.70330643,42169.0,42167.0,1.12824353]
[1641885193431,0.37723646,42168.0,42167.0,1.12824353]
[1641885193829,0.42723646,42168.0,42167.0,1.12824353]
[1641885194230,0.43523646,42168.0,42167.0,0.00062486]
[1641885194631,0.158,42168.0,42167.0,0.00062486]
[1641885195032,0.529922,42168.0,42167.0,0.00062486]
[1641885195433,0.521922,42168.0,42167.0,0.00062486]
[1641885195832,0.15,42168.0,42167.0,0.00062486]
[1641885196032,0.46708331,42169.0,42167.0,0.00062486]
[1641885196232,0.008,42168.0,42167.0,0.00062486]
[1641885197182,0.008,42168.0,42167.0,1.1288561]
[1641885197378,0.46708331,42169.0,42167.0,1.1288561]
[1641885197780,0.46708331,42169.0,42167.0,0.00062486]
[1641885198180,1.03687334,42168.0,42167.0,0.00062486]
[1641885198389,0.792551,42168.0,42167.0,0.69574702]
[1641885198581,0.792551,42168.0,42167.0,0.69512216]
[1641885198778,1.164473,42168.0,42167.0,0.69512216]
[1641885198980,1.164473,42168.0,42166.0,0.42062521]
[1641885199179,0.571922,42167.0,42166.0,0.42062521]
[1641885199382,0.669222,42167.0,42166.0,0.00062521]
[1641885199680,0.8243258,42167.0,42166.0,0.00062521]
[1641885200083,0.8353258,42167.0,42166.0,0.00062521]
[1641885200680,1.30753448,42167.0,42166.0,0.00062521]
[1641885201427,1.29653448,42167.0,42166.0,0.00062521]
[1641885202228,1.30753448,42167.0,42166.0,0.00062521]
[1641885202631,1.30243068,42167.0,42166.0,0.00062521]
[1641885203032,1.30814274,42167.0,42166.0,0.00062521]
[1641885203433,1.29714274,42167.0,42166.0,0.00062521]
[1641885203634,1.29714274,42167.0,42164.0,0.00062929]
[1641885203833,1.29714274,42167.0,42164.0,0.00127778]
[1641885204534,1.31514274,42167.0,42164.0,0.00127778]
[1641885204779,1.31514274,42167.0,42164.0,0.00062929]
[1641885205181,1.64294955,42167.0,42164.0,0.00062929]
[1641885205579,1.54294955,42167.0,42164.0,0.00062929]
[1641885205779,1.52494955,42167.0,42164.0,0.00062929]
[1641885205979,1.62494955,42167.0,42164.0,0.00062929]
[1641885206181,1.64294955,42167.0,42164.0,0.00062929]
[1641885206582,0.0653397,42166.0,42164.0,0.00062929]
[1641885206783,0.76331218,42165.0,42164.0,0.00062929]
[1641885207181,0.81331218,42165.0,42164.0,0.00062929]
[1641885207381,0.81983758,42165.0,42164.0,0.00062929]
[1641885208183,0.83583758,42165.0,42164.0,0.00062929]
[1641885208629,0.48862412,42165.0,42163.0,0.00175513]
[1641885208831,0.65,42164.0,42163.0,0.00175513]
[1641885209131,0.82917202,42164.0,42163.0,0.00175513]
[1641885209332,0.87917202,42164.0,42163.0,0.00175513]
[1641885209731,0.88167972,42164.0,42163.0,0.00175513]
[1641885210131,0.89567972,42164.0,42163.0,0.00175513]
[1641885210535,0.83636201,42164.0,42163.0,0.00175513]
[1641885211330,0.82236201,42164.0,42163.0,0.00175513]
[1641885212379,0.83736201,42164.0,42163.0,0.00175513]
[1641885213183,0.63729001,42164.0,42163.0,0.00175513]
[1641885213580,0.62229001,42164.0,42163.0,0.00175513]
[1641885214180,0.83729001,42164.0,42163.0,0.00175513]
[1641885215480,0.72229001,42164.0,42163.0,0.00175513]
[1641885216130,0.73829001,42164.0,42163.0,0.00175513]
[1641885217434,0.72229001,42164.0,42163.0,0.00175513]
[1641885218235,0.69664711,42164.0,42163.0,0.00175513]
[1641885219435,0.68064711,42164.0,42163.0,0.00175513]
[1641885220283,0.69764711,42164.0,42163.0,0.00175513]
[1641885221484,0.68064711,42164.0,42163.0,0.00175513]
[1641885221682,1.55855013,42164.0,42163.0,0.00175513]
[1641885221882,1.20855013,42164.0,42163.0,0.00175513]
[1641885222283,1.22155013,42164.0,42163.0,0.00175513]
[1641885222484,1.44018891,42164.0,42163.0,0.00175513]
[1641885223536,0.571922,42162.0,42160.0,0.42]
[1641885223733,1.08063103,42161.0,42160.0,0.42]
[1641885224032,1.28629344,42161.0,42160.0,0.42]
[1641885224232,0.35,42160.0,42157.0,0.12886894]
[1641885224433,0.571922,42158.0,42157.0,0.12886894]
[1641885224633,1.26388038,42158.0,42154.0,0.12886894]
[1641885224832,1.01354953,42155.0,42154.0,0.12886894]
[1641885225033,1.26084953,42155.0,42154.0,0.12886894]
[1641885225234,0.29041842,42154.0,42152.0,0.69624716]
[1641885225435,0.619222,42153.0,42152.0,0.00176814]
[1641885225634,0.719222,42153.0,42152.0,0.00176814]
[1641885225836,0.82577966,42153.0,42152.0,0.00176814]
[1641885226235,0.83477966,42153.0,42152.0,0.00176814]
[1641885226435,0.83477966,42153.0,42152.0,0.001125]
[1641885226637,1.26076956,42153.0,42152.0,0.001125]
[1641885226936,1.16076956,42153.0,42147.0,0.65689035]
[1641885227383,1.15176956,42153.0,42147.0,0.65689035]
[1641885227983,1.15176956,42153.0,42142.0,0.4762763]
[1641885228185,0.35096518,42152.0,42144.0,0.3036706]
[1641885228383,0.0473,42151.0,42144.0,0.3036706]
[1641885228586,0.0473,42151.0,42149.0,0.00077503]
[1641885228784,0.371922,42150.0,42149.0,0.00077503]
[1641885228985,0.519222,42150.0,42149.0,0.00077503]
[1641885229184,0.56777966,42150.0,42149.0,0.00077503]
[1641885229383,0.52524843,42150.0,42149.0,0.00077503]
[1641885230185,0.53324843,42150.0,42149.0,0.00077503]
[1641885231039,0.53324843,42150.0,42144.0,0.42]
[1641885231439,0.16132643,42150.0,42144.0,0.42]
[1641885232042,0.15332643,42150.0,42145.0,0.28561636]
[1641885232244,0.16132643,42150.0,42145.0,0.28561636]
[1641885232541,0.11402643,42150.0,42145.0,0.28061636]
[1641885232741,0.06402643,42150.0,42145.0,0.28061636]
[1641885232941,0.01402643,42150.0,42145.0,0.28061636]
[1641885233442,0.00602643,42150.0,42145.0,0.28061636]
[1641885233642,0.00602643,42150.0,42147.0,0.00067921]
[1641885234243,0.01502643,42150.0,42147.0,0.00067921]
[1641885235484,0.00602643,42150.0,42147.0,0.00067921]
[1641885236185,0.01502643,42150.0,42147.0,0.00067921]
[1641885237386,0.00602643,42150.0,42147.0,0.00067921]
[1641885238187,0.006,42150.0,42147.0,0.00067921]
[1641885238633,0.006,42150.0,42149.0,0.00067967]
[1641885239432,0.00562641,42151.0,42149.0,0.00067967]
[1641885239833,0.04392169,42150.0,42149.0,0.00067967]
[1641885240032,0.05562641,42151.0,42149.0,0.00067967]
[1641885240234,0.01362641,42151.0,42149.0,0.00067967]
[1641885240832,0.008,42151.0,42149.0,0.00067967]
[1641885241234,0.058,42151.0,42150.0,1.309311]
[1641885241433,0.008,42151.0,42150.0,1.309311]
[1641885241633,0.00085443,42154.0,42150.0,1.309311]
[1641885241836,0.00085443,42154.0,42151.0,0.36954913]
[1641885242036,0.601,42156.0,42152.0,0.31765104]
[1641885242285,0.00785444,42154.0,42152.0,0.31765104]
[1641885243286,0.007,42154.0,42152.0,0.31765104]
[1641885243485,0.00085443,42155.0,42152.0,0.31765104]
[1641885243687,0.701,42156.0,42154.0,1.25067703]
[1641885243889,0.599,42160.0,42155.0,0.44396701]
[1641885244489,0.599,42160.0,42155.0,0.64976363]
[1641885244889,0.599,42160.0,42157.0,0.059298]
[1641885245087,0.599,42160.0,42158.0,0.6114869]
[1641885245288,0.599,42160.0,42159.0,0.30176797]
[1641885245934,0.699,42160.0,42159.0,0.30176797]
[1641885246136,0.699,42160.0,42159.0,0.50756459]
[1641885246333,0.699,42160.0,42159.0,0.51256459]
[1641885246534,0.699,42160.0,42159.0,0.73256459]
[1641885248238,0.699,42160.0,42159.0,0.73656459]
[1641885248538,0.699,42160.0,42159.0,1.15373578]
[1641885250380,0.699,42160.0,42159.0,1.16173578]
[1641885250782,0.699,42160.0,42159.0,1.14473578]
[1641885252384,0.699,42160.0,42159.0,1.15373578]
[1641885252785,0.46012355,42160.0,42159.0,0.73723898]
[1641885252984,0.05,42160.0,42159.0,1.15102007]
[1641885253186,0.00085438,42162.0,42159.0,1.15102007]
[1641885253632,0.00085438,42162.0,42160.0,0.20579662]
[1641885253833,0.00085438,42162.0,42161.0,0.42014917]
[1641885254032,1.10747631,42177.0,42161.0,0.42014917]
[1641885254033,0.03649881,42170.0,42161.0,0.42014917]
[1641885254233,0.00085436,42163.0,42162.0,0.48755983]
[1641885254433,0.00085436,42163.0,42162.0,0.46986944]
[1641885255032,0.00085436,42163.0,42162.0,0.67566606]
[1641885255232,0.37181011,42170.0,42162.0,0.67566606]
[1641885255434,0.00085435,42165.0,42162.0,0.67566606]
[1641885256034,0.00085435,42165.0,42163.0,0.90035643]
[1641885256433,0.47181011,42170.0,42163.0,0.90035643]
[1641885256636,0.00085434,42166.0,42164.0,0.90035643]
[1641885257033,0.00085434,42166.0,42164.0,0.69455981]
[1641885257285,0.00085434,42166.0,42165.0,0.59524044]
[1641885257689,0.00085432,42168.0,42165.0,0.59524044]
[1641885257888,0.00085432,42168.0,42164.0,0.59524044]
[1641885258584,0.00085432,42168.0,42165.0,0.59591986]
[1641885258785,0.04102581,42169.0,42165.0,0.59591986]
[1641885258986,0.00085432,42168.0,42165.0,0.59591986]
[1641885259186,0.4415035,42167.0,42165.0,0.59591986]
[1641885259586,0.5415035,42167.0,42165.0,0.59591986]
[1641885261033,0.1,42167.0,42165.0,0.59591986]
[1641885261331,0.05,42167.0,42165.0,0.59591986]
[1641885261533,0.05085432,42168.0,42165.0,0.59591986]
[1641885261732,0.00085432,42168.0,42166.0,0.24773184]
[1641885261932,0.05085432,42168.0,42166.0,0.24773184]
[1641885262132,0.00085432,42168.0,42166.0,0.24773184]